bitfinex-derivatives/quotes_SOLF0:USTF0_20241206
["timestamp","ask_amount","ask_price","bid_price","bid_amount"]
[1733481402704,8.37114562,236.01,236.0,2.117]
[1733481403009,1.3829,236.07,236.0,2.46]
[1733481403204,8.37284479,236.06,236.0,2.46]
[1733481403404,8.37284479,236.05,236.0,2.46]
[1733481403606,2.658,236.09,236.0,2.46]
[1733481403807,19.31612663,236.08,236.0,2.46]
[1733481404005,8.37219888,236.07,236.0,2.46]
[1733481404206,8.37219888,236.06,236.02,2.1168]
[1733481404408,2.658,236.09,236.02,2.1168]
[1733481404608,19.30916558,236.08,236.02,2.1168]
[1733481404808,8.36918212,236.07,236.02,2.1168]
[1733481405004,2.658,236.09,236.0,2.46]
[1733481405207,19.30809412,236.08,236.0,2.46]
[1733481405402,19.30809412,236.07,236.0,2.46]
[1733481405607,2.1166,236.05,236.0,2.46]
[1733481405814,8.36845981,236.04,236.0,2.46]
[1733481406110,9.31979426,236.08,236.0,2.46]
[1733481406311,19.3017105,236.07,236.0,2.46]
[1733481406609,9.31979426,236.08,236.0,2.46]
[1733481406610,2.1167,236.03,236.0,2.46]
[1733481407012,2.1168,236.02,236.0,2.46]
[1733481407412,9.31979426,236.08,236.0,2.46]
[1733481407613,2.1168,236.03,236.0,2.46]
[1733481408611,9.31979426,236.08,236.03,2.1167]
[1733481408812,2.658,236.09,236.03,2.1167]
[1733481409124,8.36349504,236.08,236.03,2.1167]
[1733481409421,1.3307,236.09,236.05,2.1165]
[1733481409620,2.1162,236.09,236.05,2.1165]
[1733481410210,11.43589426,236.11,236.05,2.1165]
[1733481410418,8.36224138,236.1,236.09,2.1162]
[1733481410715,4.17305,236.14,236.07,2.46]
[1733481410716,2.1159,236.13,236.07,2.46]
[1733481410917,4.17305,236.14,236.07,2.46]
[1733481411220,8.36436406,236.13,236.07,2.46]
[1733481411413,4.17305,236.14,236.07,2.46]
[1733481411414,6.28885,236.14,236.07,2.46]
[1733481411613,4.17305,236.14,236.07,2.46]
[1733481412710,6.28885,236.14,236.09,2.1162]
[1733481413214,2.1159,236.13,236.09,2.1162]
[1733481413419,2.1159,236.13,236.07,4.5763]
[1733481413617,2.1159,236.13,236.07,2.46]
[1733481414326,2.1159,236.13,236.09,2.1162]
[1733481414625,4.17305,236.14,236.09,2.1162]
[1733481414825,4.17305,236.14,236.07,2.46]
[1733481414826,0.40925,236.14,236.12,2.1159]
[1733481415028,0.40925,236.14,236.13,2.46]
[1733481415526,0.40925,236.14,236.13,4.5758]
[1733481418331,0.40925,236.14,236.13,2.1158]
[1733481418631,0.40925,236.14,236.13,4.5758]
[1733481418927,0.40925,236.14,236.12,2.46]
[1733481419129,0.40925,236.14,236.1,2.46]
[1733481419530,0.40925,236.14,236.1,4.5761]
[1733481419731,0.40925,236.14,236.1,2.46]
[1733481420134,0.40925,236.14,236.13,2.1158]
[1733481420325,0.40925,236.14,236.11,2.46]
[1733481420635,2.1155,236.17,236.11,2.46]
[1733481420829,9.31979426,236.22,236.11,2.46]
[1733481421027,9.31979426,236.22,236.12,2.1159]
[1733481421028,2.1155,236.17,236.12,2.1159]
[1733481422328,2.1155,236.17,236.13,2.1158]
[1733481423129,9.31979426,236.19,236.1,2.44]
[1733481423634,8.32426502,236.18,236.1,4.556]
[1733481423927,9.31979426,236.19,236.1,4.556]
[1733481424128,8.32812419,236.18,236.1,2.44]
[1733481424327,2.1157,236.15,236.11,2.116]
[1733481424724,2.1158,236.14,236.1,2.44]
[1733481424933,9.31979426,236.19,236.1,2.44]
[1733481425336,9.31979426,236.19,236.1,4.5561]
[1733481425534,9.31979426,236.19,236.04,9.31979426]
[1733481425738,9.31979426,236.19,236.05,2.44]
[1733481426130,9.31979426,236.16,236.06,2.44]
[1733481426333,9.31979426,236.16,236.08,2.1163]
[1733481426334,2.116,236.12,236.08,2.1163]
[1733481426528,2.6531,236.15,236.07,2.44]
[1733481426726,1.3136,236.14,236.07,2.44]
[1733481426926,3.4294,236.14,236.1,2.116]
[1733481427127,1.3136,236.14,236.07,2.44]
[1733481429335,9.31979426,236.22,236.07,2.44]
[1733481429535,9.31979426,236.19,236.07,2.44]
[1733481429731,2.1157,236.15,236.1,2.116]
[1733481429934,2.1157,236.15,236.07,2.44]
[1733481430235,9.31979426,236.19,236.07,2.44]
[1733481430929,2.1158,236.14,236.1,2.116]
[1733481431232,9.31979426,236.19,236.07,2.44]
[1733481431539,8.3201418,236.18,236.07,2.44]
[1733481431833,8.3201418,236.17,236.07,2.44]
[1733481432031,2.1159,236.13,236.09,2.1161]
[1733481432234,4.229,236.28,236.07,2.44]
[1733481432433,9.31979426,236.21,236.07,2.44]
[1733481432737,27.29445738,236.2,236.07,2.44]
[1733481432936,19.18836882,236.19,236.07,2.44]
[1733481433138,2.1158,236.14,236.07,2.44]
[1733481433340,9.31979426,236.21,236.07,2.44]
[1733481433530,8.31897385,236.2,236.08,9.31979426]
[1733481433738,8.31897385,236.19,236.14,2.1157]
[1733481433931,9.31979426,236.21,236.14,2.44]
[1733481434127,8.32306898,236.2,236.14,2.44]
[1733481434431,8.32306898,236.19,236.14,2.44]
[1733481434638,8.32306898,236.18,236.14,2.44]
[1733481434829,2.1153,236.19,236.15,2.1157]
[1733481435137,8.32464081,236.18,236.14,2.44]
[1733481435335,8.32191137,236.17,236.14,2.44]
[1733481435829,2.1152,236.2,236.16,2.1155]
[1733481436034,2.5952,236.23,236.14,2.44]
[1733481436342,8.32229939,236.22,236.14,2.44]
[1733481436541,8.32229939,236.21,236.19,2.1153]
[1733481436836,4.7102,236.23,236.19,2.1153]
[1733481437030,8.32355673,236.22,236.19,2.1153]
[1733481437237,8.32355673,236.21,236.14,2.44]
[1733481437428,8.32355673,236.2,236.14,2.44]
[1733481437629,2.5952,236.23,236.14,2.44]
[1733481437835,8.32489396,236.22,236.14,2.44]
[1733481438136,4.7102,236.23,236.19,2.1153]
[1733481438333,2.5952,236.23,236.08,9.31979426]
[1733481438535,8.33025731,236.22,236.09,2.44]
[1733481438839,2.5952,236.23,236.11,9.31979426]
[1733481439233,2.5952,236.23,236.14,2.1157]
[1733481439535,1.3318,236.23,236.15,2.44]
[1733481440534,9.31979426,236.21,236.16,2.44]
[1733481440731,9.31979426,236.21,236.14,2.44]
[1733481441340,8.35008863,236.2,236.14,2.44]
[1733481441639,9.31979426,236.21,236.14,2.44]
[1733481441841,2.1156,236.17,236.14,2.44]
[1733481442236,2.1154,236.19,236.15,2.1156]
[1733481442440,9.31979426,236.21,236.14,2.44]
[1733481442739,8.35920338,236.2,236.14,2.44]
[1733481443041,9.31979426,236.23,236.14,2.44]
[1733481443243,9.31979426,236.2,236.14,2.44]
[1733481443439,8.36307311,236.19,236.14,2.44]
[1733481443641,9.31979426,236.23,236.14,2.44]
[1733481443838,2.1153,236.2,236.17,2.1155]
[1733481444039,1.2682,236.25,236.14,2.44]
[1733481444240,8.36844846,236.24,236.14,2.44]
[1733481444539,2.1151,236.22,236.18,2.1153]
[1733481445040,2.1151,236.21,236.14,2.44]
[1733481445633,9.31979426,236.24,236.14,2.44]
[1733481445839,2.1152,236.21,236.14,2.44]
[1733481446141,9.31979426,236.24,236.16,2.1156]
[1733481446440,2.1152,236.2,236.16,2.1156]
[1733481446835,2.1152,236.2,236.17,2.44]
[1733481447343,9.31979426,236.24,236.17,2.44]
[1733481447344,2.1153,236.19,236.17,2.44]
[1733481447537,9.31979426,236.24,236.17,2.44]
[1733481447741,9.31979426,236.21,236.14,2.44]
[1733481448042,8.3692106,236.2,236.14,2.44]
[1733481448242,8.3692106,236.19,236.14,2.44]
[1733481448438,9.31979426,236.21,236.14,2.44]
[1733481448439,2.1156,236.17,236.14,2.44]
[1733481448644,9.31979426,236.21,236.14,2.44]
[1733481448843,8.36858592,236.2,236.14,2.44]
[1733481449044,8.36858592,236.19,236.14,2.44]
[1733481449244,8.36858592,236.18,236.14,2.44]
[1733481449541,9.31979426,236.21,236.14,2.44]
[1733481449743,2.1156,236.16,236.14,2.44]
[1733481451644,9.31979426,236.21,236.14,2.44]
[1733481451843,2.1155,236.17,236.14,2.44]
[1733481452045,8.38839784,236.16,236.14,2.44]
[1733481452549,10.50399784,236.16,236.14,2.44]
[1733481452845,9.31979426,236.18,236.09,2.1161]
[1733481453046,19.3664041,236.17,236.09,4.5561]
[1733481453247,27.54788183,236.16,236.09,4.5561]
[1733481453445,27.54788183,236.15,236.09,2.1161]
[1733481453647,2.1159,236.13,236.1,2.1161]
[1733481453943,27.54788183,236.12,236.1,2.1161]
[1733481454147,19.3664041,236.11,236.1,2.1161]
[1733481454843,27.54911256,236.11,236.08,2.44]
[1733481455044,27.54803112,236.1,236.08,2.44]
[1733481455344,27.54953573,236.09,235.98,1.2489]
[1733481455540,27.54949577,236.08,235.99,2.44]
[1733481455740,27.54949577,236.07,235.99,2.44]
[1733481455946,19.3664041,236.06,236.03,2.1167]
[1733481456139,19.3664041,236.05,236.03,2.1167]
[1733481456350,19.3660606,236.04,236.03,2.1167]
[1733481456940,8.3940691,236.04,236.03,2.1167]
[1733481457147,9.31979426,236.15,236.09,2.1162]
[1733481457342,27.55543109,236.14,236.09,2.1162]
[1733481457645,27.55543109,236.13,236.02,11.75979426]
[1733481457847,27.55543109,236.12,236.08,2.1163]
[1733481458047,27.55543109,236.11,236.08,2.44]
[1733481458247,19.37186715,236.1,236.08,2.44]
[1733481458446,8.39636094,236.09,236.08,4.5563]
[1733481458646,8.39636094,236.09,236.08,2.44]
[1733481459048,8.39795427,236.09,236.08,2.44]
[1733481459447,6.51215427,236.09,236.08,2.44]
[1733481459648,9.31979426,236.21,236.08,2.44]
[1733481459845,19.16892242,236.2,236.08,2.44]
[1733481460151,3.9492,236.25,236.08,11.75979426]
[1733481460152,19.16892242,236.19,236.08,11.75979426]
[1733481460347,2.115,236.22,236.08,11.75979426]
[1733481460544,19.17139566,236.21,236.08,11.75979426]
[1733481460749,13.09809579,236.2,236.15,2.1156]
[1733481460950,10.98289579,236.19,236.16,2.44]
[1733481461249,10.98289579,236.18,236.16,2.44]
[1733481461454,9.31979426,236.24,236.16,2.44]
[1733481461850,19.17380192,236.23,236.16,2.44]
[1733481462050,19.17380192,236.22,236.16,2.44]
[1733481462249,19.17380192,236.21,236.16,2.44]
[1733481462450,2.1153,236.19,236.16,2.44]
[1733481462646,10.98423661,236.18,236.07,1.2651]
[1733481462852,2.1158,236.14,236.09,2.1162]
[1733481463350,2.1158,236.14,236.1,2.1161]
[1733481463552,9.31979426,236.21,236.08,2.44]
[1733481463753,19.1865771,236.2,236.08,2.44]
[1733481463951,21.3019771,236.19,236.14,2.1157]
[1733481464251,10.99146051,236.18,236.15,2.44]
[1733481464455,2.1152,236.21,236.16,2.1155]
[1733481464652,10.99299576,236.2,236.16,2.1155]
[1733481464852,10.99299576,236.19,236.16,2.1155]
[1733481465060,9.31979426,236.24,236.15,2.44]
[1733481465258,19.18926241,236.23,236.15,2.44]
[1733481465558,10.99311324,236.22,236.15,2.44]
[1733481465754,4.7333,236.25,236.21,2.1151]
[1733481465958,10.99616421,236.24,236.21,2.1151]
[1733481466254,10.99616421,236.24,236.15,2.44]
[1733481466255,10.99616421,236.23,236.22,2.115]
[1733481467149,2.1147,236.26,236.22,2.115]
[1733481467354,10.99075699,236.25,236.22,2.115]
[1733481467554,10.99075699,236.24,236.22,2.115]
[1733481467859,10.98717864,236.23,236.21,4.5551]
[1733481468060,9.31979426,236.27,236.21,2.44]
[1733481468255,2.1149,236.24,236.21,2.44]
[1733481468457,10.98690871,236.23,236.18,2.44]
[1733481468656,8.19115243,236.22,236.18,2.44]
[1733481468861,19.17806114,236.21,236.18,2.44]
[1733481469062,19.17806114,236.2,236.18,2.44]
[1733481469259,10.98690871,236.19,236.18,4.5554]
[1733481469463,19.20460899,236.19,236.18,2.44]
[1733481469864,27.32534266,236.19,236.18,4.5554]
[1733481472367,19.20460899,236.19,236.18,4.5554]
[1733481473576,27.32864822,236.19,236.18,4.5554]
[1733481474463,19.20460899,236.19,236.18,4.5554]
[1733481474661,27.33002779,236.19,236.18,4.5554]
[1733481475071,19.20460899,236.19,236.18,4.5554]
[1733481475366,9.31979426,236.26,236.18,2.44]
[1733481475566,2.1149,236.24,236.19,2.1152]
[1733481475761,19.1254993,236.23,236.19,2.1152]
[1733481475959,19.1254993,236.22,236.19,2.1152]
[1733481476159,8.22286922,236.21,236.18,2.44]
[1733481476365,8.22286922,236.2,236.18,4.5554]
[1733481476664,2.1151,236.22,236.18,2.44]
[1733481476968,8.22290967,236.21,236.18,2.44]
[1733481477267,8.22290967,236.2,236.19,2.1153]
[1733481477465,2.1149,236.24,236.18,2.44]
[1733481477669,19.12652057,236.23,236.18,2.44]
[1733481477866,19.12652057,236.22,236.2,2.1151]
[1733481478065,8.22330884,236.21,236.2,2.1151]
[1733481479068,8.22330884,236.21,236.2,8.06204579]
[1733481479272,5.94694579,236.3,236.2,5.94694579]
[1733481479571,27.24219883,236.29,236.23,5.94694579]
[1733481479771,19.11965881,236.28,236.24,2.44]
[1733481479970,19.11965881,236.27,236.26,2.1146]
[1733481480166,8.22071315,236.27,236.26,2.1146]
[1733481480668,8.22071315,236.27,236.24,2.44]
[1733481480871,14.16765894,236.26,236.24,2.44]
[1733481481074,10.33551315,236.25,236.24,2.44]
[1733481481370,8.22071315,236.25,236.24,4.5549]
[1733481481570,5.94694579,236.27,236.24,2.44]
[1733481481770,8.21872162,236.26,236.25,2.1147]
[1733481482175,8.21872162,236.26,236.24,2.44]
[1733481482176,5.94694579,236.27,236.24,2.44]
[1733481482471,5.94694579,236.27,236.26,2.1147]
[1733481482672,14.16063922,236.27,236.26,2.1147]
[1733481483468,14.16063922,236.27,236.16,2.44]
[1733481483668,5.94694579,236.23,236.16,2.44]
[1733481483868,8.21369343,236.22,236.16,2.44]
[1733481484172,8.06194579,236.23,236.16,2.44]
[1733481484374,8.20883612,236.22,236.16,2.44]
[1733481484577,8.20883612,236.21,236.19,2.1153]
[1733481484970,8.20883612,236.22,236.19,2.1153]
[1733481485169,8.21159822,236.21,236.19,2.1153]
[1733481485376,8.06194579,236.23,236.19,2.1153]
[1733481485672,8.21148591,236.22,236.19,2.1153]
[1733481485873,8.21148591,236.21,236.19,2.1153]
[1733481486173,8.06194579,236.23,236.18,2.1154]
[1733481486376,19.0924072,236.22,236.16,2.44]
[1733481486564,8.20874642,236.21,236.16,2.44]
[1733481486770,1.2751,236.31,236.2,2.1152]
[1733481487073,5.94694579,236.23,236.2,2.1152]
[1733481487272,19.09365556,236.22,236.2,2.1152]
[1733481487572,8.20931429,236.21,236.2,2.1152]
[1733481489069,5.94694579,236.23,236.2,2.1152]
[1733481489374,8.20574807,236.22,236.2,2.1152]
[1733481489572,5.94694579,236.23,236.2,2.1152]
[1733481489774,8.2030116,236.22,236.2,2.1152]
[1733481489972,8.2030116,236.21,236.2,2.1152]
[1733481490173,8.20394104,236.22,236.2,2.1152]
[1733481490370,5.94694579,236.21,236.18,2.1154]
[1733481490575,5.94694579,236.19,236.03,4.2334]
[1733481490770,1.2751,236.31,236.1,5.94694579]
[1733481490771,5.94694579,236.17,236.1,5.94694579]
[1733481490971,5.94694579,236.17,236.15,2.1156]
[1733481490972,19.07486448,236.16,236.15,2.1156]
[1733481491369,8.20105559,236.16,236.15,2.1156]
[1733481491774,19.06963648,236.16,236.15,2.1156]
[1733481492478,5.94694579,236.24,236.17,2.1155]
[1733481492680,27.16706064,236.23,236.16,5.94694579]
[1733481492873,33.11400643,236.22,236.14,8.38694579]
[1733481493079,5.94694579,236.2,236.14,2.44]
[1733481493278,19.06654679,236.19,236.14,8.38694579]
[1733481493487,5.94694579,236.28,236.18,5.94694579]
[1733481493683,5.94694579,236.26,236.18,5.94694579]
[1733481493882,27.14732021,236.25,236.18,5.94694579]
[1733481494077,27.14732021,236.24,236.18,5.94694579]
[1733481494385,19.05293038,236.23,236.18,5.94694579]
[1733481494683,19.05293038,236.22,236.18,5.94694579]
[1733481494887,2.1148,236.25,236.21,2.1151]
[1733481495087,27.14683874,236.24,236.21,2.44]
[1733481495289,19.05255649,236.23,236.21,4.5551]
[1733481495586,19.05255649,236.22,236.21,4.5551]
[1733481495886,24.99950228,236.22,236.19,2.1153]
[1733481496090,19.05255649,236.21,236.18,2.44]
[1733481496278,19.05255649,236.2,236.18,2.44]
[1733481496482,19.05255649,236.19,236.18,4.5554]
[1733481497091,19.05255649,236.19,236.18,2.1154]
[1733481497286,19.05255649,236.19,236.18,4.5554]
[1733481498684,5.94694579,236.23,236.18,2.44]
[1733481498987,5.94694579,236.23,236.16,5.94694579]
[1733481498988,5.94694579,236.19,236.14,2.44]
[1733481499293,35.05232625,236.39,236.18,5.94694579]
[1733481499484,5.94694579,236.27,236.2,2.1152]
[1733481499681,27.17146594,236.26,236.2,2.1152]
[1733481499883,19.06942879,236.25,236.2,2.1152]
[1733481500083,19.06942879,236.24,236.2,2.1152]
[1733481500288,8.19876799,236.23,236.2,2.1152]
[1733481500587,2.1148,236.25,236.2,2.1152]
[1733481500788,19.07334571,236.24,236.22,2.115]
[1733481500991,8.20041686,236.23,236.22,2.115]
[1733481501189,10.8806753,236.23,236.22,2.115]
[1733481501391,8.20041686,236.23,236.22,2.115]
[1733481501589,10.8806753,236.23,236.19,2.44]
[1733481501792,8.20041686,236.22,236.2,2.1151]
[1733481502086,2.1148,236.25,236.21,2.44]
[1733481502294,19.08976902,236.24,236.21,4.5551]
[1733481502593,19.08976902,236.23,236.21,4.5551]
[1733481502792,17.49908562,236.22,236.15,2.44]
[1733481502995,31.19592397,236.21,236.15,2.44]
[1733481503197,2.1156,236.17,236.07,9.29157718]
[1733481503395,4.0006,236.21,236.08,2.44]
[1733481503589,27.20386655,236.2,236.08,2.44]
[1733481503793,19.09223993,236.19,236.18,9.29157718]
[1733481503988,11.92517718,236.33,236.18,11.73157718]
[1733481504189,27.21071371,236.32,236.18,11.73157718]
[1733481504396,27.21071371,236.31,236.18,11.73157718]
[1733481504590,27.21071371,236.3,236.25,2.1147]
[1733481504788,27.21071371,236.29,236.24,2.44]
[1733481504992,29.32521371,236.28,236.24,2.44]
[1733481505192,27.21071371,236.27,236.24,2.44]
[1733481505393,19.09691275,236.26,236.24,2.44]
[1733481505598,8.21058266,236.25,236.24,2.44]
[1733481505795,8.21363637,236.31,236.26,2.1146]
[1733481505995,19.10428294,236.3,236.18,9.29157718]
[1733481506200,19.10428294,236.29,236.19,2.44]
[1733481506402,19.10428294,236.28,236.19,2.44]
[1733481506601,19.10428294,236.27,236.19,2.44]
[1733481506798,19.10428294,236.26,236.19,2.44]
[1733481507100,19.10428294,236.25,236.19,2.44]
[1733481507302,8.21363637,236.24,236.23,2.1149]
[1733481507497,10.89130908,236.24,236.23,2.1149]
[1733481507691,8.21363637,236.24,236.23,2.1149]
[1733481507896,10.89408585,236.24,236.21,2.44]
[1733481508097,17.50521355,236.27,236.2,2.44]
[1733481508098,19.10772222,236.23,236.2,2.44]
[1733481508400,19.10772222,236.22,236.2,2.44]
[1733481508595,8.21363637,236.21,236.2,4.5552]
[1733481508800,8.21363637,236.26,236.2,2.44]
[1733481509001,19.11041158,236.25,236.2,2.44]
[1733481509200,19.11041158,236.24,236.23,2.1149]
[1733481510408,19.11041158,236.24,236.2,2.44]
[1733481510697,19.11041158,236.23,236.21,2.1151]
[1733481510904,19.11041158,236.22,236.2,2.44]
[1733481511101,8.21363637,236.21,236.13,45.416]
[1733481511298,19.10395592,236.2,236.13,45.416]
[1733481511603,19.09779083,236.19,236.14,2.44]
[1733481511803,19.09779083,236.18,236.14,2.44]
[1733481512000,8.21363637,236.17,236.14,2.44]
[1733481512200,9.29157718,236.27,236.17,2.1155]
[1733481512404,19.08313346,236.26,236.17,2.1155]
[1733481512606,2.1149,236.24,236.19,2.1153]
[1733481512802,8.20455574,236.23,236.2,2.44]
[1733481513004,1.3087,236.29,236.2,2.44]
[1733481513200,19.08498317,236.28,236.2,4.5552]
[1733481513503,19.08498317,236.27,236.2,4.5552]
[1733481513703,19.08498317,236.26,236.2,4.5552]
[1733481513901,21.19978317,236.25,236.2,4.5552]
[1733481514103,8.20541662,236.24,236.2,4.5552]
[1733481514306,1.3087,236.29,236.21,2.1151]
[1733481514605,19.08013623,236.28,236.2,2.44]
[1733481514797,19.08013623,236.27,236.2,2.44]
[1733481514996,19.08013623,236.26,236.21,2.1151]
[1733481515198,2.1149,236.24,236.21,2.1151]
[1733481516005,2.1147,236.26,236.22,2.115]
[1733481516207,8.20355646,236.25,236.22,2.115]
[1733481516400,8.20355646,236.24,236.22,2.115]
[1733481516598,2.1147,236.26,236.22,2.115]
[1733481516799,8.20559306,236.25,236.22,2.115]
[1733481517108,8.20559306,236.24,236.2,2.44]
[1733481517305,8.20559306,236.23,236.2,2.44]
[1733481517499,10.32059306,236.22,236.2,2.44]
[1733481517703,9.29157718,236.27,236.2,2.44]
[1733481517900,19.08415225,236.26,236.2,2.44]
[1733481518103,19.08415225,236.25,236.2,2.44]
[1733481518408,19.08415225,236.24,236.2,2.44]
[1733481518607,19.08415225,236.23,236.2,2.44]
[1733481518909,10.32018835,236.22,236.2,2.44]
[1733481519107,9.29157718,236.27,236.2,2.44]
[1733481519305,19.08673166,236.26,236.2,2.44]
[1733481519504,19.08673166,236.25,236.2,2.44]
[1733481519707,9.29157718,236.27,236.21,2.1151]
[1733481519708,21.20163166,236.24,236.21,2.1151]
[1733481519907,8.20613465,236.23,236.18,2.44]
[1733481520109,8.20613465,236.23,236.17,2.44]
[1733481520110,8.20613465,236.22,236.17,2.44]
[1733481520408,8.20613465,236.21,236.17,2.44]
[1733481520809,8.20613465,236.2,236.19,2.1153]
[1733481521109,8.20613465,236.2,236.17,2.44]
[1733481521411,1.3087,236.29,236.2,2.1152]
[1733481521611,19.09867572,236.28,236.2,2.1152]
[1733481521799,19.09867572,236.27,236.13,53.33157718]
[1733481522000,19.09867572,236.26,236.14,2.44]
[1733481522207,19.09867572,236.25,236.14,2.44]
[1733481522407,2.1151,236.21,236.14,2.44]
[1733481522708,19.10564148,236.2,236.14,2.44]
[1733481522908,8.21143828,236.19,236.14,2.44]
[1733481523213,19.1068511,236.18,236.15,2.44]
[1733481523412,8.21143828,236.17,236.15,2.44]
[1733481523709,8.21143828,236.16,236.15,2.44]
[1733481523910,8.21143828,236.2,236.15,2.44]
[1733481524103,19.11318189,236.19,236.15,2.44]
[1733481524304,19.11318189,236.18,236.16,2.1155]
[1733481524503,8.21758143,236.17,236.16,2.1155]
[1733481525106,8.21758143,236.17,236.15,2.44]
[1733481525409,2.5301,236.23,236.08,9.29157718]
[1733481525609,2.1154,236.19,236.09,2.44]
[1733481525805,8.21562139,236.18,236.14,2.1157]
[1733481526113,8.21562139,236.17,236.09,2.44]
[1733481526306,2.5301,236.23,236.09,2.44]
[1733481526508,19.10831073,236.22,236.09,2.44]
[1733481526805,19.10831073,236.21,236.19,2.1153]
[1733481527006,8.21548377,236.2,236.18,2.44]
[1733481527210,8.21548377,236.19,236.17,2.44]
[1733481527910,2.5301,236.23,236.17,2.44]
[1733481528106,19.11137801,236.22,236.17,2.44]
[1733481528311,2.1153,236.19,236.17,2.44]
[1733481529112,2.5301,236.23,236.17,2.44]
[1733481529309,2.1152,236.21,236.17,4.5555]
[1733481529607,8.21758016,236.2,236.17,2.44]
[1733481529812,2.5301,236.23,236.17,2.44]
[1733481530908,4.6451,236.23,236.18,2.1153]
[1733481531209,4.6451,236.23,236.17,2.44]
[1733481531404,5.94726202,236.26,236.17,2.44]
[1733481531713,10.33552032,236.25,236.17,2.44]
[1733481531907,2.1149,236.25,236.17,2.44]
[1733481532311,5.94726202,236.24,236.17,2.44]
[1733481532505,5.94726202,236.22,236.17,2.44]
[1733481532712,8.21954457,236.21,236.17,2.44]
[1733481532909,5.94726202,236.22,236.17,2.44]
[1733481533215,5.94726202,236.2,236.12,5.94726202]
[1733481533413,5.94726202,236.2,236.13,2.44]
[1733481533612,8.21816681,236.19,236.13,2.44]
[1733481533816,2.1156,236.16,236.13,2.1158]
[1733481534013,2.1156,236.16,236.12,2.44]
[1733481534607,2.1156,236.16,236.12,4.5559]
[1733481534811,9.29749337,236.21,236.12,2.44]
[1733481535017,2.1157,236.15,236.12,2.44]
[1733481536212,9.29749337,236.15,236.06,2.44]
[1733481536512,9.29749337,236.15,235.99,9.29749337]
[1733481536513,8.21621294,236.14,235.99,9.29749337]
[1733481536718,8.21621294,236.13,236.0,2.44]
[1733481536911,9.29749337,236.15,236.0,2.44]
[1733481537111,2.1161,236.1,236.03,2.1167]
[1733481537312,9.29749337,236.15,236.03,2.1167]
[1733481537512,19.10452247,236.14,236.03,2.1167]
[1733481537714,8.21388785,236.13,236.03,2.1167]
[1733481537913,8.21388785,236.12,236.03,2.1167]
[1733481538114,2.1163,236.09,236.03,2.1167]
[1733481538315,2.1163,236.09,236.04,2.1166]
[1733481539219,9.29749337,236.15,236.04,2.1166]
[1733481539419,2.1163,236.08,236.04,2.1166]
[1733481539919,9.29749337,236.15,236.03,2.1167]
[1733481539920,2.1164,236.07,236.03,2.1167]
[1733481541019,2.1165,236.06,236.01,2.1168]
[1733481541413,3.9199,236.11,236.0,2.44]
[1733481541616,2.6407,236.11,236.02,9.29749337]
[1733481541818,9.29749337,236.18,236.02,9.29749337]
[1733481542011,9.56480014,236.17,236.02,9.29749337]
[1733481542218,1.3587,236.17,236.02,9.29749337]
[1733481542413,8.20241471,236.16,236.02,9.29749337]
[1733481542712,9.29749337,236.15,236.0,2.44]
[1733481542910,9.29749337,236.12,236.0,2.44]
[1733481543314,9.29749337,236.12,236.02,2.1168]
[1733481543515,9.29749337,236.12,236.0,2.44]
[1733481544113,2.1164,236.07,236.0,2.44]
[1733481544313,2.1164,236.07,236.02,2.1168]
[1733481544518,2.1164,236.07,236.0,2.44]
[1733481544925,2.1164,236.07,236.02,2.1168]
[1733481545422,9.29749337,236.12,236.02,2.1168]
[1733481545617,9.29749337,236.12,236.0,2.44]
[1733481545821,9.29749337,236.09,236.01,2.44]
[1733481546022,2.1166,236.05,236.01,4.5569]
[1733481546217,9.29749337,236.12,236.01,2.44]